bitfinex/quotes_SOLUSD_20240818
["timestamp","ask_amount","ask_price","bid_price","bid_amount"]
[1723986279661,16.80551289,146.23,146.13,6.3163]
[1723986279868,7.76337332,146.22,146.14,15.2654]
[1723986280075,7.76337332,146.21,146.14,15.2654]
[1723986280272,13.25032249,146.23,146.14,15.2654]
[1723986280471,7.76334838,146.22,146.14,15.2654]
[1723986280772,7.76334838,146.21,146.14,15.2654]
[1723986280968,13.25032249,146.23,146.14,15.2654]
[1723986281187,7.76362059,146.22,146.14,15.2654]
[1723986281386,1.1919179,146.23,146.14,15.2654]
[1723986281387,7.76362059,146.21,146.14,15.2654]
[1723986281587,1.1919179,146.23,146.14,15.2654]
[1723986281889,7.76368347,146.22,146.14,15.2654]
[1723986282091,7.76368347,146.21,146.14,15.2654]
[1723986282292,13.25032249,146.23,146.14,15.2654]
[1723986282468,52.76368347,146.22,146.14,15.2654]
[1723986282662,7.76368347,146.21,146.14,15.2654]
[1723986282868,45.0,146.22,146.14,15.2654]
[1723986283177,7.76366563,146.21,146.14,15.2654]
[1723986283363,45.0,146.2,146.14,15.2654]
[1723986283569,1.71024789,146.21,146.14,15.2654]
[1723986283892,45.0,146.22,146.14,15.2654]
[1723986284093,7.76378675,146.21,146.14,15.2654]
[1723986284296,52.76383179,146.2,146.14,15.2654]
[1723986284486,45.0,146.2,146.14,15.2654]
[1723986285382,7.76438111,146.19,146.14,15.2654]
[1723986285576,45.0,146.18,146.14,15.2654]
[1723986285781,46.71052228,146.18,146.14,15.2654]
[1723986286197,45.0,146.18,146.14,15.2654]
[1723986287192,0.12549,146.21,146.14,15.2654]
[1723986287390,7.76429185,146.2,146.14,15.2654]
[1723986287691,52.76429185,146.19,146.14,15.2654]
[1723986287888,45.0,146.19,146.14,15.2654]
[1723986288690,45.0,146.2,146.14,15.2654]
[1723986288893,7.76419724,146.19,146.14,15.2654]
[1723986289074,46.7103837,146.2,146.14,15.2654]
[1723986289075,45.0,146.18,146.14,15.2654]
[1723986289277,46.7103837,146.2,146.14,15.2654]
[1723986289488,45.0,146.2,146.14,15.2654]
[1723986289885,7.76419724,146.19,146.14,15.2654]
[1723986291173,45.0,146.2,146.14,15.2654]
[1723986292273,45.0,146.21,146.14,15.2654]
[1723986292494,7.76366265,146.2,146.14,15.2654]
[1723986292694,45.0,146.19,146.14,15.2654]
[1723986299598,45.0,146.2,146.14,15.2654]
[1723986299803,7.7642122,146.19,146.14,15.2654]
[1723986300009,45.0,146.18,146.14,15.2654]
[1723986300200,45.0,146.2,146.14,15.2654]
[1723986300499,7.76419819,146.19,146.14,15.2654]
[1723986300703,45.0,146.18,146.14,15.2654]
[1723986301506,22.55148087,146.17,146.1,16.4581]
[1723986301683,0.12549,146.15,146.1,16.4581]
[1723986302000,7.76498395,146.14,146.1,16.4581]
[1723986302204,54.47823859,146.13,146.1,16.4581]
[1723986302391,46.71109898,146.13,146.1,16.4581]
[1723986302590,45.0,146.14,146.1,16.4581]
[1723986302791,7.76712699,146.13,146.1,16.4581]
[1723986302999,6.84,146.2,146.1,16.4581]
[1723986303311,23.50608542,146.19,146.1,16.4581]
[1723986303488,23.38059542,146.18,146.1,16.4581]
[1723986303809,23.4514,146.22,146.1,16.4581]
[1723986303810,7.76641948,146.17,146.1,16.4581]
[1723986304010,20.59,146.23,146.11,6.363]
[1723986304011,7.76641948,146.16,146.11,6.363]
[1723986304308,15.61350816,146.19,146.11,6.363]
[1723986304483,7.76495654,146.18,146.11,6.363]
[1723986304688,15.61420066,146.21,146.14,6.363]
[1723986304982,23.4502,146.25,146.14,6.363]
[1723986304983,7.76417495,146.2,146.14,6.363]
[1723986305204,7.76417495,146.19,146.15,1.3671087]
[1723986305388,15.6124752,146.21,146.15,1.3671087]
[1723986305712,19.82150731,146.2,146.15,1.3671087]
[1723986306006,7.76402164,146.19,146.14,6.363]
[1723986306181,15.61216885,146.22,146.14,6.363]
[1723986306182,15.61216885,146.21,146.14,6.363]
[1723986306383,19.82096703,146.2,146.14,6.363]
[1723986306582,7.76378771,146.19,146.14,6.363]
[1723986306806,7.76378771,146.18,146.14,6.363]
[1723986307004,7.76378771,146.17,146.14,6.363]
[1723986307184,54.47581942,146.16,146.14,6.363]
[1723986307506,54.47581942,146.16,146.13,16.4581]
[1723986307507,7.76580251,146.15,146.13,16.4581]
[1723986307710,52.76580251,146.14,146.13,16.4581]
[1723986309210,6.8394,146.22,146.13,16.4581]
[1723986309410,96.18825226,146.21,146.13,16.4581]
[1723986309723,0.12549,146.19,146.13,16.4581]
[1723986309891,11.32183362,146.18,146.13,16.4581]
[1723986310097,7.76609192,146.17,146.13,16.4581]
[1723986310317,2.74893302,146.26,146.13,16.4581]
[1723986310318,15.61384399,146.22,146.13,16.4581]
[1723986310610,23.37783982,146.21,146.14,7.73038773]
[1723986310817,19.82263744,146.2,146.15,21.36808088]
[1723986311116,7.76399583,146.19,146.16,1.36798726]
[1723986311315,15.61134244,146.23,146.15,20.0]
[1723986311485,23.37456527,146.22,146.15,20.0]
[1723986311685,19.8198642,146.21,146.15,20.0]
[1723986311997,7.76322283,146.2,146.15,20.0]
[1723986312198,7.76322283,146.19,146.15,20.0]
[1723986312395,15.61118993,146.22,146.15,20.0]
[1723986312596,20.59,146.25,146.15,20.0]
[1723986312597,19.81982503,146.21,146.15,20.0]
[1723986312786,7.76323523,146.2,146.14,6.363]
[1723986313110,6.8381,146.24,146.14,6.363]
[1723986313312,23.62596711,146.23,146.14,6.363]
[1723986313498,23.37498711,146.22,146.14,6.363]
[1723986313699,64.82029525,146.21,146.14,6.363]
[1723986314006,7.76341434,146.2,146.14,6.363]
[1723986314193,45.0,146.21,146.14,6.363]
[1723986314390,7.76325199,146.2,146.14,6.363]
[1723986314694,45.0,146.21,146.14,6.363]
[1723986314889,7.76323721,146.2,146.14,6.363]
[1723986315202,23.4488,146.28,146.16,6.5204]
[1723986315506,23.36908842,146.27,146.17,20.0]
[1723986315706,23.36908842,146.26,146.18,16.2068]
[1723986316023,19.81536913,146.25,146.18,16.2068]
[1723986316220,6.8358,146.29,146.18,16.2068]
[1723986316221,7.76149558,146.24,146.18,16.2068]
[1723986316516,15.60706045,146.27,146.18,16.2068]
[1723986316709,23.36879457,146.26,146.18,16.2068]
[1723986316916,31.9167978,146.25,146.18,16.2068]
[1723986317097,23.37256394,146.24,146.18,16.2068]
[1723986317416,25.20818631,146.23,146.18,16.2068]
[1723986317596,64.81824422,146.22,146.18,16.2068]
[1723986317793,21.52937997,146.21,146.18,16.2068]
[1723986318010,52.76261545,146.2,146.18,16.2068]
[1723986318208,45.0,146.2,146.18,16.2068]
[1723986318999,57.0567262,146.21,146.18,16.2068]
[1723986319235,7.76326708,146.2,146.18,16.2068]
[1723986319408,12.0567262,146.21,146.18,16.2068]
[1723986319597,52.76312524,146.2,146.18,16.2068]
[1723986319930,45.0,146.2,146.18,16.2068]
[1723986320294,0.12549,146.28,146.18,16.2068]
[1723986320496,0.12549,146.26,146.18,16.2068]
[1723986320734,23.37201177,146.25,146.18,16.2068]
[1723986320914,68.37201177,146.24,146.18,16.2068]
[1723986321116,19.81777583,146.23,146.18,16.2068]
[1723986321307,12.05534282,146.25,146.18,16.2068]
[1723986321507,7.76151194,146.24,146.19,7.88810706]
[1723986321706,7.76045531,146.27,146.19,6.5204]
[1723986322018,19.81328948,146.26,146.19,6.5204]
[1723986322194,7.76114556,146.25,146.19,6.5204]
[1723986322391,12.0532329,146.26,146.19,6.5204]
[1723986322592,7.76077645,146.25,146.2,0.12549]
[1723986322798,7.76045531,146.27,146.2,0.12549]
[1723986323021,7.76072453,146.26,146.2,0.12549]
[1723986323195,19.81312488,146.27,146.2,0.12549]
[1723986323398,7.76036756,146.26,146.2,0.12549]
[1723986323622,7.76045531,146.27,146.2,0.12549]
[1723986323922,7.76036756,146.26,146.2,0.12549]
[1723986324229,7.76045531,146.27,146.2,0.12549]
[1723986324409,7.76035875,146.26,146.2,0.12549]
[1723986324726,7.76045531,146.27,146.2,0.12549]
[1723986325021,7.76040662,146.26,146.2,0.12549]
[1723986325231,7.76045531,146.27,146.19,6.5204]
[1723986325401,45.0,146.26,146.19,6.5204]
[1723986326219,45.0,146.27,146.19,6.5204]
[1723986326419,7.76073031,146.26,146.19,6.5204]
[1723986326628,45.0,146.28,146.19,6.5204]
[1723986326801,9.47019801,146.27,146.19,6.5204]
[1723986326997,52.76073031,146.26,146.19,6.5204]
[1723986327205,45.0,146.28,146.19,6.5204]
[1723986327524,7.76073031,146.27,146.19,6.5204]
[1723986327698,52.76073031,146.26,146.19,6.5204]
[1723986327897,45.0,146.26,146.19,6.5204]
[1723986328929,0.25098,146.29,146.2,0.12549]
[1723986329219,7.76077529,146.28,146.2,0.12549]
[1723986329404,0.25098,146.29,146.2,0.12549]
[1723986329405,52.76077529,146.27,146.2,0.12549]
[1723986329741,45.0,146.27,146.2,0.12549]
[1723986329900,45.0,146.28,146.2,0.12549]
[1723986330101,7.76062814,146.27,146.2,0.12549]
[1723986330302,45.0,146.29,146.2,0.12549]
[1723986330527,7.76023574,146.28,146.21,16.2185]
[1723986331225,45.0,146.29,146.21,16.2185]
[1723986331715,15.6668,146.33,146.22,26.43089]
[1723986332022,7.75865867,146.32,146.22,26.43089]
[1723986332209,7.75865867,146.31,146.22,26.43089]
[1723986332408,7.75865867,146.3,146.22,26.43089]
[1723986332608,22.5006,146.33,146.22,26.43089]
[1723986332914,7.75930507,146.32,146.22,6.43089]
[1723986333113,52.75930507,146.31,146.22,6.43089]
[1723986333306,45.0,146.31,146.22,6.43089]
[1723986333504,15.91778,146.33,146.23,1.49202813]
[1723986333505,0.25098,146.33,146.23,1.49202813]
[1723986333807,0.25098,146.32,146.24,1.3672195]
[1723986334012,8.01031138,146.32,146.24,1.3672195]
[1723986334213,7.75933138,146.31,146.24,1.3672195]
[1723986334412,0.25098,146.32,146.24,1.3672195]
[1723986334756,7.75933117,146.31,146.25,15.3643]
[1723986334929,45.0,146.3,146.25,15.3643]
[1723986335404,21.5707072,146.34,146.25,15.3643]
[1723986335405,0.8552172,146.34,146.26,26.35419]
[1723986335599,0.8552172,146.34,146.26,26.2287]
[1723986336005,0.8552172,146.34,146.27,1.36697752]
[1723986337410,0.8552172,146.34,146.28,0.25098]
[1723986337928,0.8552172,146.34,146.28,20.25098]
[1723986340005,0.8552172,146.34,146.28,20.0]
[1723986340203,0.8552172,146.34,146.27,20.12549]
[1723986341026,0.8552172,146.34,146.29,0.12549]
[1723986341332,0.8552172,146.34,146.3,21.593]
[1723986341517,0.8552172,146.34,146.31,1.36665165]
[1723986342325,0.8552172,146.34,146.3,21.593]
[1723986342326,0.8552172,146.34,146.32,1.36587571]
[1723986343525,0.8552172,146.34,146.3,21.593]
[1723986343526,0.8552172,146.34,146.31,1.36659551]
[1723986345230,0.8552172,146.34,146.31,21.36659551]
[1723986346437,0.8552172,146.34,146.31,20.0]
[1723986347038,0.8552172,146.34,146.33,0.12549]
[1723986347219,6.8283,146.45,146.34,15.3643]
[1723986347526,15.2296,146.47,146.34,15.3643]
[1723986347527,7.75502011,146.44,146.35,0.25098]
[1723986347729,10.37863206,146.46,146.35,0.25098]
[1723986348029,14.5833007,146.45,146.34,15.3643]
[1723986348229,7.7550007,146.44,146.34,15.3643]
[1723986348429,6.8283,146.45,146.35,0.25098]
[1723986348633,6.8279,146.46,146.35,0.25098]
[1723986348842,7.75427758,146.45,146.35,0.25098]
[1723986349434,6.8279,146.46,146.35,0.25098]
[1723986349633,0.12549,146.45,146.34,15.3643]
[1723986349837,65.96647,146.45,146.34,15.3643]
[1723986350005,6.8287,146.44,146.34,15.3643]
[1723986350207,45.37647,146.43,146.34,15.3643]
[1723986350412,45.37647,146.43,146.35,1.36628576]
[1723986350726,15.2296,146.47,146.36,7.59490394]
[1723986350907,15.2296,146.47,146.36,6.2287]
[1723986351104,6.8279,146.46,146.36,6.2287]
[1723986351515,8.5353787,146.46,146.36,6.2287]
[1723986351915,6.8279,146.46,146.36,6.2287]
[1723986352316,15.2296,146.47,146.36,6.2287]
[1723986352518,22.057,146.47,146.37,0.37647]
[1723986352836,6.8278,146.46,146.36,6.2287]
[1723986353134,1.70753893,146.45,146.37,0.12549]
[1723986353312,6.8269,146.48,146.37,0.25098]
[1723986353510,3.20787336,146.49,146.38,0.12549]
[1723986353707,0.8552172,146.49,146.39,16.1977]
[1723986354430,7.6816172,146.49,146.4,1.36575447]
[1723986354632,7.6816172,146.49,146.39,16.1977]
[1723986354806,7.6816172,146.49,146.4,1.36568539]
[1723986355435,0.8552172,146.49,146.41,6.6661]
[1723986355739,0.8552172,146.49,146.42,1.36531405]
[1723986356038,0.8552172,146.49,146.43,1.36549158]
[1723986356211,0.8552172,146.49,146.42,0.12549]
[1723986356614,0.8552172,146.49,146.41,6.6661]
[1723986358919,0.12549,146.48,146.41,6.6661]
[1723986359238,52.20337,146.48,146.41,6.6661]
[1723986359541,0.12549,146.48,146.41,6.6661]
[1723986360416,65.84098,146.48,146.41,6.6661]
[1723986360930,8.65969514,146.48,146.41,6.6661]
[1723986361131,6.8268,146.48,146.41,6.6661]
[1723986361441,7.6816172,146.49,146.41,6.6661]
[1723986362308,0.8552172,146.49,146.41,6.6661]
[1723986363112,0.8552172,146.49,146.42,1.36539061]
[1723986363516,0.8552172,146.49,146.41,6.6661]
[1723986364530,0.8552172,146.49,146.42,1.61614706]
[1723986365228,0.8552172,146.49,146.42,0.25098]
[1723986366347,0.8552172,146.49,146.41,6.6661]
[1723986372227,0.8552172,146.49,146.39,16.1977]
[1723986372228,0.12549,146.47,146.39,16.1977]
[1723986372439,27.4179,146.46,146.39,16.1977]
[1723986372744,45.0,146.45,146.39,16.1977]
[1723986373246,6.8288,146.44,146.37,6.6661]
[1723986373742,51.8283,146.45,146.37,6.6661]
[1723986374545,0.12549,146.46,146.37,6.6661]
[1723986374735,6.8273,146.47,146.37,6.6661]
[1723986375224,6.8278,146.46,146.37,6.6661]
[1723986376143,27.4174,146.47,146.37,6.6661]
[1723986376441,45.0,146.46,146.37,6.6661]
[1723986377127,21.4452172,146.49,146.37,6.6661]
[1723986377331,6.8274,146.47,146.37,6.6661]
[1723986378344,20.59,146.47,146.37,6.6661]
[1723986378551,21.4452172,146.49,146.37,6.6661]
[1723986378851,0.8552172,146.49,146.39,15.7347]
[1723986379029,0.8552172,146.49,146.4,6.2688]
[1723986379777,0.8552172,146.49,146.41,0.12549]
[1723986380039,0.8552172,146.49,146.4,6.2688]
[1723986380630,0.8552172,146.49,146.43,0.12549]
[1723986380850,0.8552172,146.49,146.43,21.86707813]
[1723986383227,0.8552172,146.49,146.43,21.74158813]
[1723986383427,0.8552172,146.49,146.43,21.61618559]
[1723986383627,0.8552172,146.49,146.42,6.2688]
[1723986386431,14.57772435,146.48,146.42,6.2688]
[1723986386632,7.6816172,146.49,146.42,6.2688]
[1723986386839,7.75093064,146.48,146.42,6.2688]
[1723986387155,0.8552172,146.49,146.42,6.2688]
[1723986390235,7.75004396,146.48,146.42,6.2688]
[1723986393361,7.75004396,146.47,146.42,6.2688]
[1723986393559,0.8552172,146.49,146.42,6.2688]
[1723986393780,9.45694843,146.48,146.42,6.2688]
[1723986393939,19.78651066,146.47,146.42,6.2688]
[1723986394138,7.750255,146.46,146.42,6.2688]
[1723986394442,7.750255,146.45,146.42,6.2688]
[1723986394658,12.03625566,146.46,146.42,6.2688]
[1723986394840,12.03625566,146.46,146.37,15.1926]
[1723986394841,7.75136898,146.45,146.38,6.5326]
[1723986395039,7.75136898,146.44,146.38,6.5326]
[1723986395254,12.03625566,146.45,146.38,6.5326]
[1723986395457,7.75136508,146.44,146.38,6.5326]
[1723986395648,12.03625566,146.45,146.38,6.5326]
[1723986395849,12.03625566,146.47,146.38,7.8983833]
[1723986396051,7.75028573,146.46,146.4,0.12549]
[1723986396354,12.03625566,146.47,146.4,1.49094747]
[1723986396550,7.75005867,146.46,146.4,1.49094747]
[1723986396752,12.03625566,146.47,146.4,0.12549]
[1723986396961,7.75005506,146.46,146.4,0.25098]
[1723986397274,12.03587715,146.47,146.41,21.85069]
[1723986397466,7.75001392,146.46,146.42,1.36523591]
[1723986397666,12.03587715,146.47,146.41,21.85069]
[1723986397966,12.03534941,146.48,146.42,1.36542255]
[1723986398155,7.74967602,146.47,146.41,21.7252]
[1723986398350,7.74981217,146.46,146.41,21.7252]
[1723986398535,0.8552172,146.49,146.41,21.7252]
[1723986398742,19.78545582,146.48,146.41,21.7252]
[1723986399056,7.74984413,146.47,146.41,21.7252]
[1723986399364,12.0352835,146.48,146.41,21.7252]
[1723986399551,7.74960351,146.47,146.41,21.7252]
[1723986399754,12.03530098,146.48,146.41,21.7252]
[1723986400054,7.74960294,146.47,146.41,21.7252]
[1723986400259,12.03522979,146.48,146.41,21.7252]
[1723986400575,7.74960377,146.47,146.42,0.12549]
[1723986400868,0.8552172,146.49,146.44,6.5326]
[1723986401965,0.8552172,146.49,146.46,0.12549]
[1723986402157,0.8552172,146.49,146.46,1.49047402]
[1723986402362,0.8552172,146.49,146.46,0.12549]
[1723986402565,0.8552172,146.49,146.45,15.31809]
[1723986403350,0.8552172,146.49,146.46,1.36504446]
[1723986403567,0.8552172,146.49,146.45,15.31809]
[1723986404644,0.8552172,146.49,146.45,15.1926]
[1723986405757,0.8552172,146.49,146.46,21.36501846]
[1723986405964,0.8552172,146.49,146.47,0.25098]
[1723986406269,0.8552172,146.49,146.47,1.6158268]
[1723986407349,0.8552172,146.49,146.48,6.90907]
[1723986407673,0.8552172,146.49,146.48,72.03456]
[1723986407969,0.8552172,146.49,146.48,26.5326]
[1723986408767,0.8552172,146.49,146.48,6.5326]
[1723986409647,0.8552172,146.49,146.45,15.1926]
[1723986410447,0.8552172,146.49,146.46,1.36511186]
[1723986410770,0.8552172,146.49,146.47,1.36508483]
[1723986410956,0.8552172,146.49,146.45,15.1926]
[1723986411877,0.8552172,146.49,146.44,6.5326]
[1723986412447,0.8552172,146.49,146.45,0.7187119]
[1723986412855,0.8552172,146.49,146.46,0.71866282]
[1723986413667,0.8552172,146.49,146.44,6.5326]
[1723986417689,0.8552172,146.49,146.45,0.12549]
[1723986417983,0.8552172,146.49,146.45,0.25098]
[1723986418189,0.8552172,146.49,146.45,20.25098]
[1723986418482,0.8552172,146.49,146.45,20.0]
[1723986419961,0.8552172,146.49,146.44,6.5326]
[1723986420376,15.9188172,146.49,146.4,6.3946]
[1723986420584,7.74971254,146.48,146.4,6.3946]
[1723986420759,7.75020138,146.47,146.4,6.3946]
[1723986420964,27.95458817,146.49,146.4,6.3946]
[1723986421259,7.750221,146.48,146.4,6.3946]
[1723986421583,15.9188172,146.49,146.4,6.3946]
[1723986421784,0.8552172,146.49,146.42,0.12549]
[1723986421960,7.74900316,146.48,146.4,6.3946]
[1723986422287,0.8552172,146.49,146.4,6.3946]
[1723986422288,12.89098817,146.49,146.4,6.3946]
[1723986422455,0.8552172,146.49,146.41,0.50196]
[1723986423262,7.74868982,146.48,146.41,0.50196]
[1723986423470,0.8552172,146.49,146.41,0.50196]
[1723986423670,7.7490014,146.48,146.4,6.3946]
[1723986423870,12.88950803,146.49,146.4,6.3946]
[1723986424072,7.74892185,146.48,146.4,6.3946]
[1723986424379,0.8552172,146.49,146.4,6.3946]
[1723986424579,7.74927358,146.48,146.4,6.3946]
[1723986424774,19.78557344,146.47,146.4,6.3946]
[1723986425071,19.78557344,146.46,146.4,6.3946]
[1723986425276,7.74927358,146.45,146.4,6.3946]
[1723986425458,12.03629986,146.46,146.4,6.3946]
[1723986425659,7.75053328,146.45,146.4,6.3946]
[1723986425898,0.8552172,146.49,146.4,6.3946]
[1723986426181,19.78535394,146.48,146.4,6.3946]
[1723986426380,19.78535394,146.47,146.4,6.3946]
[1723986426589,7.74980445,146.46,146.4,6.3946]
[1723986426890,12.03554949,146.47,146.4,6.3946]
[1723986427193,0.8552172,146.49,146.4,6.3946]
[1723986427361,19.78584382,146.48,146.4,6.3946]
[1723986427688,19.78584382,146.47,146.4,6.3946]
[1723986427862,7.74999526,146.46,146.4,6.3946]
[1723986428066,4.40374193,146.49,146.4,6.3946]
[1723986428283,19.78574263,146.48,146.4,6.3946]
[1723986428601,19.78574263,146.47,146.4,6.3946]
[1723986428902,7.74995585,146.46,146.4,6.3946]
[1723986429104,12.03578678,146.47,146.4,6.3946]
[1723986429395,12.03552432,146.48,146.4,6.3946]
[1723986429589,7.74978756,146.47,146.4,6.3946]
[1723986429780,4.59378416,146.5,146.4,6.3946]
[1723986429988,7.74982351,146.49,146.4,6.3946]
[1723986430298,7.74982351,146.48,146.4,6.3946]
[1723986430490,4.59378416,146.5,146.4,6.3946]
[1723986430693,7.74990202,146.49,146.4,6.3946]
[1723986430903,7.74990202,146.48,146.4,6.3946]
[1723986431075,4.59378416,146.5,146.4,6.3946]
[1723986431282,7.74990395,146.49,146.4,6.3946]
[1723986431483,7.74990395,146.48,146.4,6.3946]
[1723986431683,4.59378416,146.5,146.4,6.3946]
[1723986431985,7.74990395,146.49,146.4,6.3946]
[1723986432322,7.74990395,146.48,146.4,6.3946]
[1723986432486,4.59378416,146.5,146.4,6.3946]
[1723986432683,7.74990395,146.49,146.4,6.3946]
[1723986433179,4.59378416,146.5,146.4,6.3946]
[1723986433378,7.74954513,146.49,146.4,6.3946]
[1723986433580,6.30061446,146.5,146.4,6.3946]
[1723986433797,7.74954513,146.49,146.41,20.0]
[1723986434312,1.04535442,146.5,146.41,20.0]
[1723986434485,7.74944838,146.49,146.41,20.0]
[1723986434680,4.59378416,146.5,146.4,6.3946]
[1723986434983,11.29788402,146.49,146.4,6.3946]
[1723986435183,9.45645138,146.48,146.4,6.3946]
[1723986435495,7.74945428,146.47,146.4,6.3946]
[1723986435686,7.74945428,146.46,146.4,6.3946]
[1723986435892,3.54842974,146.48,146.4,6.3946]
[1723986436201,7.75064539,146.47,146.4,6.3946]
[1723986436512,24.15704539,146.46,146.36,13.76350962]
[1723986436707,7.75064539,146.45,146.36,6.6196]
[1723986437205,1.04535442,146.5,146.37,1.36584946]
[1723986437408,11.2984418,146.49,146.38,16.3345]
[1723986437581,4.59358735,146.5,146.39,1.36549564]
[1723986437776,7.74936993,146.49,146.4,0.12549]
[1723986438013,7.74936993,146.48,146.4,0.12549]
[1723986438305,3.54823293,146.5,146.42,16.3345]
[1723986438505,6.824,146.54,146.42,16.3345]
[1723986438506,15.58364114,146.53,146.42,16.3345]
[1723986438679,23.3325516,146.52,146.42,16.3345]
[1723986438879,11.29694632,146.51,146.42,16.3345]
[1723986439086,7.74891046,146.5,146.42,16.3345]
[1723986439298,15.58364114,146.52,146.42,16.3345]
[1723986439609,7.74889049,146.51,146.42,16.3345]
[1723986439834,7.74889049,146.5,146.42,16.3345]
[1723986440108,15.58364114,146.52,146.42,16.3345]
[1723986440410,11.29697736,146.51,146.42,16.3345]
[1723986440582,7.7489415,146.5,146.42,16.3345]
[1723986440785,7.749255,146.49,146.42,16.3345]
[1723986441107,3.54803586,146.5,146.42,16.3345]
[1723986441405,7.74925647,146.49,146.42,16.3345]
[1723986441603,3.54818549,146.5,146.42,16.3345]
[1723986441811,7.74934511,146.49,146.42,16.3345]
[1723986442104,3.54818549,146.5,146.42,16.3345]
[1723986442304,7.74930356,146.49,146.42,16.3345]
[1723986442513,3.54818549,146.5,146.42,16.3345]
[1723986442703,7.74930356,146.49,146.42,16.3345]
[1723986443012,3.54818549,146.5,146.42,16.3345]
[1723986443203,9.45627512,146.49,146.42,16.3345]
[1723986443395,9.45632982,146.48,146.42,16.3345]
[1723986443595,1.70698786,146.48,146.42,16.3345]
[1723986444488,1.70691428,146.49,146.42,16.3345]
[1723986444686,7.74945332,146.48,146.42,16.3345]
[1723986445390,3.54829618,146.49,146.42,16.3345]
[1723986445594,12.03506845,146.5,146.42,16.3345]
[1723986445894,15.58294536,146.52,146.42,16.3345]
[1723986446196,12.0333493,146.52,146.42,16.3345]
[1723986446405,11.29619322,146.51,146.42,16.3345]
[1723986446605,7.74840069,146.5,146.42,16.3345]
[1723986446813,7.74890256,146.49,146.42,16.3345]
[1723986447001,3.54779253,146.5,146.42,16.3345]
[1723986447211,7.74926794,146.49,146.42,16.3345]
[1723986447513,3.54779253,146.5,146.42,16.3345]
[1723986447719,7.74927166,146.49,146.42,16.3345]
[1723986447918,7.74927166,146.48,146.42,16.3345]
[1723986448122,3.54779253,146.5,146.42,16.3345]
[1723986448297,7.74886512,146.49,146.42,16.3345]
[1723986448494,15.5813566,146.51,146.42,16.3345]
[1723986448713,7.74889329,146.5,146.42,16.3345]
[1723986448912,7.74889329,146.49,146.42,16.3345]
[1723986449094,17.2882163,146.51,146.42,16.3345]
[1723986449301,11.29699927,146.5,146.42,16.3345]
[1723986449512,9.4558231,146.49,146.42,16.3345]
[1723986449717,1.70683113,146.49,146.42,16.3345]
[1723986450696,5.2549254,146.5,146.42,16.3345]
[1723986451019,7.74903352,146.49,146.42,16.3345]
[1723986451219,5.2549254,146.5,146.42,16.3345]
[1723986451414,7.74916847,146.49,146.42,16.3345]
[1723986451615,1.70686463,146.48,146.42,16.3345]
[1723986451795,1.7070282,146.47,146.42,16.3345]
[1723986452222,1.7070282,146.47,146.39,15.1352]
[1723986452223,7.75036718,146.46,146.39,15.1352]
[1723986452429,23.45819143,146.45,146.37,6.5549]
[1723986452599,56.29842989,146.44,146.37,6.5549]
[1723986452799,9.45805763,146.43,146.37,6.5549]
[1723986453011,45.0,146.44,146.37,6.5549]
[1723986453229,7.75221726,146.43,146.37,6.5549]
[1723986453512,12.03427154,146.45,146.37,6.5549]
[1723986453713,11.30170555,146.44,146.37,6.5549]
[1723986453917,7.75217837,146.43,146.37,6.5549]
[1723986454123,6.95339,146.46,146.37,6.5549]
[1723986454301,3.54950822,146.44,146.37,6.5549]
[1723986454631,7.75213708,146.43,146.37,6.5549]
[1723986454852,12.03920553,146.47,146.37,6.5549]
[1723986455008,11.30072424,146.46,146.37,6.5549]
[1723986455322,7.75150586,146.45,146.37,6.5549]
[1723986455516,3.54921838,146.46,146.37,6.5549]
[1723986455720,7.75138694,146.45,146.37,6.5549]
[1723986455904,3.54921838,146.46,146.37,6.5549]
[1723986456104,7.75138926,146.45,146.37,6.5549]
[1723986456299,3.54921838,146.46,146.37,6.5549]
[1723986456522,7.75138926,146.45,146.37,6.5549]
[1723986456731,3.54921838,146.46,146.37,6.5549]
[1723986456905,7.75138968,146.45,146.37,6.5549]
[1723986457109,3.54921838,146.46,146.37,6.5549]
[1723986457311,7.75150397,146.45,146.38,0.12549]
[1723986457630,3.54921838,146.47,146.38,0.25098]